[Event "37th ECCC 2022"]
[Site "Mayrhofen"]
[Date "2022.10.03"]
[Round "1.39"]
[White "Heinola, Vesa"]
[Black "Christiansen, Johan-Sebastian"]
[Result "0-1"]
[ECO "A57"]
[WhiteElo "2265"]
[BlackElo "2576"]
[Annotator "TA"]
[PlyCount "122"]
[EventDate "2022.10.03"]
[EventType "team-tourn"]
[EventCountry "AUT"]
[SourceTitle "playchess.com"]
[Source "ChessBase"]
[SourceQuality "1"]
[TimeControl "40/5400+30:1800+30"]

{[%evp 9,122,5,16,-7,-1,1,12,0,-8,-16,-16,-18,-5,-53,-50,-63,-63,-70,-70,-75,-80,-76,-69,-79,-80,-91,-72,-101,-95,-100,-100,-144,-146,-141,-126,-138,-120,-144,-143,-138,-129,-138,-138,-138,-119,-141,-135,-153,-130,-153,-142,-144,-138,-145,-127,-153,-153,-153,-153,-202,-153,-181,0,-202,-153,-153,-135,-153,-153,-245,-245,-261,-253,-294,-281,-294,-286,-286,-286,-305,0,-281,-281,-282,-237,-237,-237,-237,-237,-407,-406,-455,-450,-456,-314,-663,-696,-687,-692,-689,-668,-627,-601,-587,-577,-568,-545,-1305,-1179,-5891,-5293,-29986,-29987,-29992,-29992]} 1. d4 {[%emt 0:00:04]} Nf6 {[%emt 0:00:06]} 2. c4 {[%emt 0:00:15]} c5 {[%emt 0:01:04]} 3. d5 {[%emt 0:00:16]} b5 {[%emt 0:00:02]} 4. Nd2 {[%emt 0:00:48]} bxc4 {[%emt 0:02:04]} 5. e4 {[%emt 0:03:20]} e6 {[%emt 0:00:07]} (5... Qa5 6. Qc2 $14) 6. dxe6 {[%emt 0:01:06] A57: Benko/Volga Gambit.} dxe6 {[%emt 0:00:03]} 7. Bxc4 {[%emt 0:00:58]} Bb7 {[%emt 0:00:04]} 8. Qe2 {[%emt 0:01:53] The position is equal.} Nc6 {[%emt 0:04:41]} 9. Ngf3 {[%emt 0:00:59]} Be7 {[%emt 0:00:15]} 10. O-O {[%emt 0:01:17]} O-O {[%emt 0:00:02]} 11. e5 {[%emt 0:05:17]} (11. Rd1 $11) 11... Nd5 $15 {[%emt 0:04:08]} 12. Ne4 {[%emt 0:03:18]} Qc7 $1 {[%emt 0:15:35]} 13. Nc3 {[%emt 0:03:08] [#]} Rad8 $146 {[%emt 0:02:43][%cal Ba8d8,Bd8d4,Bd4e4][%mdl 32]} ({Predecessor:} 13... Ncb4 14. Ng5 Nb6 15. a3 Nxc4 16. Qxc4 Nc2 17. Nxh7 Nxa1 18. Nf6+ Bxf6 19. exf6 Qe5 {½-½ (54) Makke,L (2175)-Mourot,F (2105) France 2001}) 14. Re1 {[%emt 0:06:14]} Nd4 {[%emt 0:37:03]} 15. Nxd4 {[%emt 0:01:58] [#] aiming for Ndb5.} Nxc3 {[%emt 0:00:08]} ({Of course not} 15... cxd4 $6 16. Nxd5 Bxd5 17. Bd3 $11) 16. bxc3 {[%emt 0:01:56] Strongly threatening Nb5.} cxd4 {[%emt 0:00:02]} 17. cxd4 {[%emt 0:09:28]} Rxd4 {[%emt 0:00:24]} 18. Bb3 {[%emt 0:01:09]} Re4 {[%emt 0:03:53]} 19. Be3 {[%emt 0:00:41]} Bg5 {[%emt 0:13:05]} 20. Bc2 {[%emt 0:05:46]} Rxe5 {[%emt 0:01:01]} ({Don't take} 20... Qxe5 21. Bxe4 Qxe4 22. f3 Bxe3+ 23. Qxe3 $16) 21. Rac1 {[%emt 0:06:52][%cal Oc2h7]} Qa5 {[%emt 0:01:53]} 22. Qd3 {[%emt 0:03:14][%csl Gc2][%cal Rd3h7]} Be4 {[%emt 0:02:44] Active counter play!} 23. Qb3 {[%emt 0:00:27]} Bxc2 {[%emt 0:02:20]} 24. Qxc2 {[%emt 0:01:13]} Bxe3 {[%emt 0:00:06]} 25. Rxe3 {[%emt 0:00:13]} Rxe3 {[%emt 0:00:13]} 26. fxe3 $17 {[%emt 0:00:05][%mdl 4096] Endgame KQR-KQR} g6 {[%emt 0:02:03]} 27. Rd1 {[%emt 0:04:26]} Rb8 {[%emt 0:00:52]} 28. h3 {[%emt 0:04:58]} h5 {[%emt 0:02:47]} 29. Rf1 {[%emt 0:00:48]} Qe5 {[%emt 0:01:35]} 30. Qf2 {[%emt 0:01:19]} Rb7 {[%emt 0:00:05]} 31. Qf3 {[%emt 0:01:39]} Rc7 {[%emt 0:00:41]} 32. Qa8+ {[%emt 0:00:59]} Kg7 {[%emt 0:00:44]} 33. Qf3 {[%emt 0:00:48]} a5 {[%emt 0:00:24]} 34. a4 {[%emt 0:00:21]} (34. Kh1 $17) 34... Qc3 {[%emt 0:02:07]} 35. Kh2 {[%emt 0:00:57]} Qe5+ {[%emt 0:00:38]} 36. Kg1 $1 {[%emt 0:00:16]} Rd7 {[%emt 0:01:06]} 37. Kh1 {[%emt 0:00:43]} Kh7 {[%emt 0:01:04]} 38. Qc6 {[%emt 0:01:24]} Qc7 {[%emt 0:00:35]} 39. Qf3 {[%emt 0:00:26]} (39. Qe4 $17) 39... Qc4 $19 {[%emt 0:00:54]} 40. Ra1 {[%emt 0:02:17]} Kg7 {[%emt 0:00:29] Against Qf6+} 41. Kg1 {[%emt 0:32:40]} Rd5 {[%emt 0:01:26]} 42. Qf2 {[%emt 0:00:00]} ({Don't play} 42. Rf1 Rf5 43. Qd1 Rxf1+ 44. Qxf1 Qxa4 $19) 42... Qc3 {[%emt 0:01:46]} 43. Re1 {[%emt 0:00:00]} Rd2 {[%emt 0:01:58]} 44. Qg3 {[%emt 0:00:00]} Rd5 $2 {[%emt 0:09:07]} ({Black should play} 44... Ra2 $19 45. Rf1 Rxa4) 45. Rf1 $2 {[%emt 0:00:00][%mdl 8192]} (45. Qf2 $1 $11 {and White has nothing to worry.}) 45... Re5 {[%emt 0:05:51]} 46. Rf3 {[%emt 0:00:00]} Qc1+ {[%emt 0:00:24]} 47. Kh2 {[%emt 0:00:00] [#]} Qc7 {[%emt 0:00:23]} 48. Rf4 {[%emt 0:00:00]} Rc5 {[%emt 0:04:32] Inhibits Rc4.} 49. h4 $2 {[%emt 0:00:00]} (49. Rd4 {was necessary.}) 49... Rc3 {[%emt 0:00:21]} 50. Kh3 {[%emt 0:00:00]} e5 {[%emt 0:02:19][%cal Be6e5,Be5e4][%mdl 32]} 51. Rf3 {[%emt 0:00:00]} e4 {[%emt 0:01:08]} 52. Rf4 {[%emt 0:00:00]} (52. Qxc7 Rxc7 53. Rf2) 52... Qc5 {[%emt 0:00:35]} 53. Kh2 {[%emt 0:00:00]} Rxe3 {[%emt 0:00:46]} 54. Qf2 {[%emt 0:00:00]} f5 {[%emt 0:00:21]} 55. Qb2+ {[%emt 0:00:00]} Rc3 {[%emt 0:00:22] And now ...e3 would win.} 56. Rf2 {[%emt 0:00:00]} Qb4 {[%emt 0:01:30]} 57. Qd2 {[%emt 0:00:00]} Rd3 {[%emt 0:00:10] Against Qd7+} 58. Qg5 {[%emt 0:00:00]} Qd6+ {[%emt 0:00:30]} 59. g3 {[%emt 0:00:00]} e3 {[%emt 0:01:31]} 60. Rxf5 {[%emt 0:00:08]} Rd2+ {[%emt 0:00:07]} 61. Kg1 {[%emt 0:00:27]} Rd1+ {[%emt 0:00:45] Weighted Error Value: White=0.50/Black=0.16 (very precise)} 0-1

[Event "37th ECCC 2022"]
[Site "Mayrhofen"]
[Date "2022.10.03"]
[Round "1.40"]
[White "Urkedal, Frode Olav Olsen"]
[Black "Kauko, Jussi"]
[Result "1-0"]
[ECO "A67"]
[WhiteElo "2523"]
[BlackElo "2250"]
[Annotator "TA"]
[PlyCount "83"]
[EventDate "2022.10.03"]
[EventType "team-tourn"]
[EventCountry "AUT"]
[SourceTitle "playchess.com"]
[Source "ChessBase"]
[SourceQuality "1"]
[TimeControl "40/5400+30:1800+30"]

{[%evp 21,83,26,35,14,0,8,39,21,74,68,97,83,116,85,171,143,213,218,281,273,294,241,308,303,376,368,494,446,431,420,636,637,541,619,615,547,565,520,472,446,397,360,461,485,481,502,584,567,508,496,1005,981,979,960,992,989,1326,1299,1231,1202,1208,1177,1432,872]} 1. d4 {[%emt 0:00:04]} Nf6 {[%emt 0:00:07]} 2. c4 {[%emt 0:00:05]} c5 {[%emt 0:00:04]} 3. d5 {[%emt 0:00:08]} e6 {[%emt 0:00:06]} 4. Nc3 {[%emt 0:00:10]} exd5 {[%emt 0:00:05]} 5. cxd5 {[%emt 0:00:09]} d6 {[%emt 0:00:04]} 6. e4 {[%emt 0:00:50]} g6 {[%emt 0:00:07]} 7. f4 {[%emt 0:00:28]} Bg7 {[%emt 0:00:07]} 8. Bb5+ {[%emt 0:00:08]} Nfd7 {[%emt 0:00:07]} 9. a4 {[%emt 0:00:24]} O-O {[%emt 0:00:09]} 10. Nf3 {[%emt 0:00:18]} Na6 {[%emt 0:00:09]} 11. O-O {[%emt 0:00:29]} Nb4 {[%emt 0:03:04] The main line 11...Nb4 scores better than 11...Nc7.} 12. h3 {[%emt 0:00:24] A67: Modern Benoni: Taimanov Variation.} a6 {[%emt 0:00:10]} 13. Bc4 {[%emt 0:00:06]} Re8 {[%emt 0:00:41]} (13... f5 {keeps more tension.} 14. Ng5 Nb6 15. Bb3 a5) 14. Re1 {[%emt 0:00:05] White is slightly better.} Nb6 {[%emt 0:03:42] [#]} (14... Rb8 $11 {keeps the balance.}) 15. Bf1 $1 $16 {[%emt 0:02:15] [#] Black is now going downhill.} Bd7 $146 {[%emt 0:00:41]} ({Predecessor:} 15... f5 16. a5 Nd7 17. e5 dxe5 18. d6 e4 19. Bc4+ Kh8 20. Ng5 Qf6 21. Be3 h6 {1-0 (43) Zujev,O (2270)-Maj,P (2153) Warsaw 2015}) 16. Be3 {[%emt 0:03:42][%cal Bc1e3,Be3f2,Bf2h4][%mdl 32]} Rc8 {[%emt 0:15:23]} 17. Bf2 {[%emt 0:03:08]} Na8 {[%emt 0:06:30]} (17... a5 $16 {is a better defense.}) 18. Qd2 $18 {[%emt 0:05:09]} Nc7 {[%emt 0:13:33]} (18... a5 $16 {might work better.} 19. Nb5 c4) 19. Bh4 {[%emt 0:08:02]} f6 {[%emt 0:03:57]} 20. e5 {[%emt 0:08:14]} Bf5 {[%emt 0:09:21]} 21. Rac1 {[%emt 0:03:19]} g5 {[%emt 0:04:51]} 22. exd6 {[%emt 0:09:42]} gxh4 {[%emt 0:02:23]} 23. dxc7 {[%emt 0:00:11]} Rxc7 {[%emt 0:03:58]} 24. Nxh4 {[%emt 0:08:20]} Bd7 {[%emt 0:05:45]} 25. d6 {[%emt 0:02:07]} Rc6 {[%emt 0:00:18]} (25... Rc8 $142 26. Rxe8+ Bxe8) 26. Bc4+ {[%emt 0:00:10]} Kh8 {[%emt 0:00:50]} 27. Rxe8+ {[%emt 0:03:34]} Bxe8 {[%emt 0:01:21]} 28. Rd1 {[%emt 0:02:08]} Bd7 {[%emt 0:00:30]} 29. f5 {[%emt 0:02:10] [#] Strongly threatening Re1.} Rc8 {[%emt 0:03:52]} 30. Be6 {[%emt 0:05:08]} Nc6 {[%emt 0:01:27]} 31. Nf3 {[%emt 0:04:07]} Rb8 {[%emt 0:05:46]} 32. Qf2 {[%emt 0:02:23] White is clearly winning.} b6 {[%emt 0:00:19]} 33. Ne2 {[%emt 0:00:20]} Bh6 {[%emt 0:02:02]} 34. Qh4 {[%emt 0:00:31]} Be3+ {[%emt 0:00:11]} 35. Kh1 {[%emt 0:00:07]} Ne5 {[%emt 0:01:24]} (35... Rb7 $142 36. Bxd7 Rxd7) 36. Nxe5 {[%emt 0:00:20]} fxe5 {[%emt 0:00:10]} 37. Qg3 {[%emt 0:00:34]} Bh6 {[%emt 0:00:33]} 38. Bxd7 {[%emt 0:02:42]} Qxd7 {[%emt 0:02:30]} 39. Qxe5+ {[%emt 0:00:07]} Kg8 {[%emt 0:01:17]} 40. Qe6+ {[%emt 0:01:01]} Qxe6 {[%emt 0:00:38]} 41. fxe6 {[%emt 0:30:06]} Kf8 {[%emt 0:30:10]} 42. Ng3 {[%emt 0:00:50] Weighted Error Value: White=0.12 (very precise) /Black=0.53} 1-0

[Event "37th ECCC 2022"]
[Site "Mayrhofen"]
[Date "2022.10.03"]
[Round "1.41"]
[White "Torkkola, Henri"]
[Black "Haug, Johannes"]
[Result "0-1"]
[ECO "A45"]
[WhiteElo "2174"]
[BlackElo "2478"]
[Annotator "TA"]
[PlyCount "98"]
[EventDate "2022.10.03"]
[EventType "team-tourn"]
[EventCountry "AUT"]
[SourceTitle "playchess.com"]
[Source "ChessBase"]
[SourceQuality "1"]
[TimeControl "40/5400+30:1800+30"]

{[%evp 18,98,12,0,28,-4,-14,-18,0,-22,0,-22,-23,-33,0,0,31,14,41,14,23,18,12,25,52,-6,0,0,0,0,0,-59,0,-187,-201,-403,-312,-405,-393,-402,-281,-281,-281,-275,-285,-269,-269,-275,-293,-299,-292,-299,-282,-268,-259,-493,-477,-562,-548,-595,-593,-575,-564,-697,-691,-693,-532,-468,-436,-6307,-5402,-29960,-29961,-29959,-29965,-5389,-6372,-5835,-5835,-29983,-29983,-29986,-29986]} 1. d4 {[%emt 0:00:03]} Nf6 {[%emt 0:00:01]} 2. Bf4 {[%emt 0:00:12]} b6 {[%emt 0:00:03]} 3. e3 {[%emt 0:00:31]} Bb7 {[%emt 0:00:10]} 4. Nd2 {[%emt 0:00:54]} d6 {[%emt 0:01:23]} 5. h3 {[%emt 0:03:57]} g6 {[%emt 0:00:21]} 6. Ngf3 {[%emt 0:00:07]} Bg7 {[%emt 0:00:07]} 7. Be2 {[%emt 0:00:08]} O-O {[%emt 0:00:48]} 8. O-O {[%emt 0:00:08]} Nbd7 {[%emt 0:00:49]} 9. a4 {[%emt 0:00:21]} a5 {[%emt 0:02:12]} 10. c3 {[%emt 0:01:18] 10.Bh2 injects fresh life into this line.} Qe8 {[%emt 0:01:48] A48: 1 d4 Nf6 2 Nf3 g6: Torre, London and Colle Systems.} 11. Bh2 {[%emt 0:01:20]} e5 {[%emt 0:02:30]} 12. dxe5 {[%emt 0:04:29]} dxe5 {[%emt 0:05:32] The position is equal.} 13. Bb5 {[%emt 0:00:39][%cal Of3e5]} Qe7 {[%emt 0:02:52]} 14. Qc2 {[%emt 0:01:11]} Rad8 {[%emt 0:04:34]} 15. Rad1 {[%emt 0:03:20] [#]} Nd5 $146 {[%emt 0:11:45]} ({Predecessor:} 15... Kh8 16. Rfe1 Ne8 17. e4 Nd6 18. Bf1 f5 19. exf5 gxf5 20. Nxe5 Nxe5 21. Bxe5 Bxe5 22. f4 Ne4 23. fxe5 Qc5+ 24. Kh2 Qxe5+ 25. Kg1 Qc5+ 26. Kh2 Qd6+ {0-1 (26) Studenetzky,M (2230)-Biaggi,E (2260) Buenos Aires 1990}) 16. Rfe1 {[%emt 0:06:52]} h6 {[%emt 0:15:22]} 17. Bc4 {[%emt 0:11:52]} Nc5 {[%emt 0:08:39]} 18. e4 {[%emt 0:19:05]} Nf4 {[%emt 0:01:54]} 19. Bxf4 {[%emt 0:00:17]} exf4 {[%emt 0:00:06]} 20. e5 {[%emt 0:00:08]} Kh7 {[%emt 0:04:54]} 21. h4 {[%emt 0:00:54]} (21. b4 $14 Ne6 22. bxa5) 21... Bc8 {[%emt 0:02:03]} 22. Nd4 {[%emt 0:16:32]} Qxh4 {[%emt 0:05:12]} 23. N2f3 {[%emt 0:02:42]} Qg4 {[%emt 0:09:13]} 24. b4 {[%emt 0:04:42]} ({White should try} 24. Nh2 $1 $11 Qh5 25. b4) 24... Ne6 {[%emt 0:03:39]} ({Better is} 24... Bb7 $1 $15 25. bxc5 Rxd4 26. Rxd4 (26. cxd4 $2 {loses.} Bxf3 27. Bf1 Bxg2 $19) 26... Bxf3) 25. Nb5 $2 {[%emt 0:01:53] Black converts the advantage convincingly.} (25. bxa5 $11 bxa5 26. Qb3) 25... Bb7 $19 {[%emt 0:01:25]} 26. Be2 {[%emt 0:05:25] [#]} (26. Qe2) 26... Bxe5 $1 {[%emt 0:02:48][%mdl 512]} 27. Rxd8 {[%emt 0:00:39]} (27. Kf1 Ng5) 27... Rxd8 {[%emt 0:00:41]} ({Inferior is} 27... Nxd8 28. bxa5 bxa5 29. Bd1 $17) 28. Rd1 {[%emt 0:00:05]} Rxd1+ {[%emt 0:01:56]} 29. Qxd1 {[%emt 0:00:04] [#]} Ng5 $1 {[%emt 0:01:08]} 30. Nxg5+ {[%emt 0:02:12]} (30. Ne1 f3) 30... Qxg5 {[%emt 0:00:07][%csl Gb7][%cal Rg5g2]} 31. Bf3 {[%emt 0:00:06]} Bxf3 {[%emt 0:00:36]} 32. Qxf3 {[%emt 0:00:04][%mdl 4096] Endgame KQB-KQN} Qf5 {[%emt 0:00:25]} 33. bxa5 {[%emt 0:01:40]} bxa5 {[%emt 0:00:13]} 34. Nd4 {[%emt 0:01:05]} Qb1+ {[%emt 0:03:26]} 35. Kh2 {[%emt 0:00:04]} Qe1 {[%emt 0:01:10]} 36. Ne2 $2 {[%emt 0:01:10]} (36. Nc6) 36... Qd2 {[%emt 0:01:30]} 37. Kh3 {[%emt 0:02:03]} Qd1 {[%emt 0:01:04]} 38. g3 {[%emt 0:01:37]} Qxa4 {[%emt 0:01:59]} 39. Qd5 {[%emt 0:01:09]} Qe8 {[%emt 0:00:18]} 40. gxf4 {[%emt 0:00:04]} Bg7 {[%emt 0:00:47]} 41. Nd4 {[%emt 0:31:21]} a4 {[%emt 0:30:15][%cal Ba5a4,Ba4a3,Ba3a2][%mdl 32] ...Bxd4 is the strong threat.} 42. f5 {[%emt 0:00:15]} Bxd4 {[%emt 0:04:13]} 43. fxg6+ {[%emt 0:00:16]} (43. cxd4 $142 Kg7 44. Kg2) 43... Kxg6 {[%emt 0:01:19]} 44. Qxd4 {[%emt 0:00:08] KQ-KQ} Qe6+ {[%emt 0:00:13]} 45. Kg2 {[%emt 0:00:13]} a3 {[%emt 0:00:00]} 46. Qd3+ {[%emt 0:00:00]} Kg7 {[%emt 0:00:00]} 47. Qd4+ {[%emt 0:00:00]} Kh7 {[%emt 0:00:00] ( -> ...Qc6+)} 48. c4 {[%emt 0:00:00]} Qg6+ {[%emt 0:00:00]} 49. Kh3 {[%emt 0:00:00]} a2 {[%emt 0:00:00] Weighted Error Value: White=0.74/Black=0.24 (precise)} 0-1

[Event "37th ECCC 2022"]
[Site "Mayrhofen"]
[Date "2022.10.03"]
[Round "1.42"]
[White "Ranaldi, Lucas"]
[Black "Varpanen, Jan"]
[Result "1-0"]
[ECO "A34"]
[WhiteElo "2369"]
[BlackElo "2106"]
[Annotator "TA"]
[PlyCount "105"]
[EventDate "2022.10.03"]
[EventType "team-tourn"]
[EventCountry "AUT"]
[SourceTitle "playchess.com"]
[Source "ChessBase"]
[SourceQuality "1"]
[TimeControl "40/5400+30:1800+30"]

{[%evp 13,105,12,14,16,39,34,36,31,60,61,104,92,120,117,121,123,124,127,137,141,165,100,211,231,191,135,118,92,95,90,81,70,50,35,128,121,148,150,153,145,150,142,153,146,170,164,379,367,826,822,802,797,1049,1062,1008,1006,733,513,401,319,1508,239,300,0,1484,1454,1174,1008,1553,662,743,588,596,553,1541,3146,1836,1559,1565,1347,2479,2548,29964,29960,2338,657,29976,29977,29983,29984,29984,29985,29995,29996]} 1. c4 {[%emt 0:00:05]} Nf6 {[%emt 0:01:02]} 2. Nc3 {[%emt 0:00:29]} c5 {[%emt 0:02:39]} 3. g3 {[%emt 0:01:38]} Nc6 {[%emt 0:01:43]} 4. Bg2 {[%emt 0:00:30]} g6 {[%emt 0:01:44]} 5. e3 {[%emt 0:11:32][%cal Be2e3,Be3d4,Bd4d5][%mdl 32]} Bg7 {[%emt 0:09:58]} 6. Nge2 {[%emt 0:00:18]} O-O {[%emt 0:03:19]} 7. d4 {[%emt 0:02:44]} d6 {[%emt 0:09:17]} 8. h3 {[%emt 0:05:29] E61: King's Indian: Early deviations for White, including Smyslov System.} h6 {[%emt 0:07:22]} 9. O-O {[%emt 0:07:08]} cxd4 {[%emt 0:05:02]} 10. exd4 {[%emt 0:00:42] [#] White is slightly better.} e5 $146 {[%emt 0:01:37]} ({Predecessor:} 10... Bd7) 11. Be3 {[%emt 0:07:36]} Qe7 {[%emt 0:10:25]} 12. d5 {[%emt 0:04:26]} Na5 {[%emt 0:10:46]} 13. b3 {[%emt 0:15:28]} b6 {[%emt 0:02:42]} 14. Qd2 {[%emt 0:05:37]} Kh7 {[%emt 0:00:38]} 15. f4 {[%emt 0:04:26]} exf4 {[%emt 0:08:52]} 16. Rxf4 {[%emt 0:04:19][%cal Bf1f4,Bf4h4,Bh4e4,Be4e3][%mdl 32]} Bd7 {[%emt 0:04:30]} 17. Raf1 {[%emt 0:07:04]} ({White should play} 17. Re1 $18) 17... Rad8 {[%emt 0:03:57]} (17... Rae8 $16) 18. Rh4 {[%emt 0:08:37][%cal Re3h6]} Ng8 {[%emt 0:01:57]} 19. Bg5 {[%emt 0:02:42]} ({Better is} 19. Ne4 $18) 19... f6 $16 {[%emt 0:00:27]} 20. Re4 {[%emt 0:01:14]} Qf7 {[%emt 0:02:29]} 21. Bf4 {[%emt 0:00:49]} Nb7 {[%emt 0:00:41]} 22. g4 {[%emt 0:01:28]} f5 {[%emt 0:01:20]} 23. gxf5 {[%emt 0:00:24]} Bxf5 {[%emt 0:00:52] [#]} (23... gxf5 $14 24. Re3 Rde8) 24. Re3 $1 $36 {[%emt 0:00:27][%mdl 2048] White is in control.} Nf6 {[%emt 0:01:48]} 25. Nd4 {[%emt 0:00:41][%cal Be2d4,Bd4e6,Be6g7][%mdl 32]} Rde8 {[%emt 0:01:36] Against Ne6} 26. Ne6 {[%emt 0:02:47]} Rg8 {[%emt 0:01:39]} 27. Nb5 {[%emt 0:00:19][%csl LRa7,LRd6] Threatens to win with Nbc7.} Nh5 {[%emt 0:00:51]} 28. Nxd6 {[%emt 0:01:18] White is much more active.} ({Worse is} 28. Bxd6 a6 29. Nbc7 (29. Nxg7 Nxg7 30. Bc7 axb5 $11) 29... Nxd6 $11) 28... Nxd6 {[%emt 0:00:27]} 29. Bxd6 {[%emt 0:00:04]} Qd7 {[%emt 0:00:37]} (29... Bf6 {is a better defense.} 30. Be5 Ng7) 30. Nxg7 $18 {[%emt 0:01:06]} Rxe3 {[%emt 0:02:35]} (30... Qxg7 31. Bb4 Qf6) 31. Nxh5 {[%emt 0:02:32] [#] Threatening mate with Nf6+.} Qxd6 {[%emt 0:00:33]} 32. Qxe3 {[%emt 0:00:16]} gxh5 {[%emt 0:00:19]} 33. Rxf5 {[%emt 0:01:41]} Rxg2+ {[%emt 0:00:22]} 34. Kxg2 {[%emt 0:00:18]} Qg6+ {[%emt 0:00:11]} 35. Kh2 {[%emt 0:01:09] White wants to mate with Qe7+.} Qxf5 {[%emt 0:00:10][%mdl 4096] Endgame KQ-KQ} 36. Qe7+ {[%emt 0:00:33]} Kh8 $2 {[%emt 0:00:39]} (36... Kg6 37. Qe8+ (37. Qxa7 Qf2+ 38. Kh1 Qf1+ 39. Kh2 Qf2+ 40. Kh1 Qf1+ 41. Kh2 Qf2+ $11) 37... Kg7) 37. Qe8+ $2 {[%emt 0:00:12]} (37. Kg3 {d6 is the strong threat.} Qd3+ 38. Kh4) 37... Kh7 {[%emt 0:00:10]} 38. Qe7+ $2 {[%emt 0:00:07]} (38. Qe3) 38... Kh8 $1 {[%emt 0:00:05]} 39. Kg3 {[%emt 0:00:43]} h4+ {[%emt 0:03:56]} 40. Qxh4 {[%emt 0:00:19]} Qd3+ {[%emt 0:00:24]} 41. Kg2 {[%emt 0:30:40]} (41. Kg4 $142 Qg6+ 42. Kf4) 41... Qc2+ {[%emt 0:08:55]} 42. Qf2 {[%emt 0:00:00]} Qe4+ {[%emt 0:00:50]} 43. Kg3 {[%emt 0:00:00]} b5 {[%emt 0:05:50]} 44. Qf6+ {[%emt 0:00:00]} Kh7 {[%emt 0:00:28]} 45. Qe6 {[%emt 0:00:00]} Qd3+ {[%emt 0:03:12]} 46. Kf4 {[%emt 0:00:00] Intending Qf5+ and mate.} Qd2+ {[%emt 0:00:06]} 47. Ke5 {[%emt 0:00:00]} bxc4 {[%emt 0:00:16]} 48. Qf5+ {[%emt 0:00:00]} Kg7 {[%emt 0:01:28]} 49. Qg4+ {[%emt 0:00:00]} (49. bxc4 $142 Qe2+ 50. Qe4) 49... Kh7 {[%emt 0:00:48]} 50. bxc4 {[%emt 0:00:00] White mates.} Qxa2 {[%emt 0:00:54]} 51. d6 {[%emt 0:00:00]} Qa5+ {[%emt 0:01:21]} 52. Ke6 {[%emt 0:00:00]} Qa6 {[%emt 0:00:07]} 53. Kf7 {[%emt 0:00:00] Weighted Error Value: White=0.59/Black=0.32} 1-0

[Event "37th ECCC 2022"]
[Site "Mayrhofen"]
[Date "2022.10.03"]
[Round "1.43"]
[White "Korobov, Anton"]
[Black "Bruedigam, Martin"]
[Result "1/2-1/2"]
[ECO "B10"]
[WhiteElo "2672"]
[BlackElo "2375"]
[Annotator "TA"]
[PlyCount "61"]
[EventDate "2022.10.03"]
[EventType "team-tourn"]
[EventCountry "AUT"]
[SourceTitle "playchess.com"]
[Source "ChessBase"]
[SourceQuality "1"]
[TimeControl "40/5400+30:1800+30"]

{[%evp 10,61,25,20,26,0,0,0,30,18,22,19,31,26,32,21,24,25,37,12,19,9,29,0,0,-14,-12,-26,-15,-42,-37,-67,-57,-66,-66,-70,-20,-20,-20,-40,-29,-36,-29,-33,-31,-36,-6,-19,0,-6,0,0,0,0]} 1. e4 {[%emt 0:00:05]} c6 {[%emt 0:01:12]} 2. Nc3 {[%emt 0:00:29]} d5 {[%emt 0:00:05]} 3. Nf3 {[%emt 0:00:08]} dxe4 {[%emt 0:02:25]} 4. Nxe4 {[%emt 0:00:16]} Nf6 {[%emt 0:00:04]} 5. Qe2 {[%emt 0:00:40]} Nxe4 {[%emt 0:00:07]} 6. Qxe4 {[%emt 0:00:05]} Qd5 {[%emt 0:01:12] B11: Caro-Kann: Two Knights Variation.} 7. Qh4 {[%emt 0:08:13]} Qe6+ {[%emt 0:01:16]} 8. Be2 {[%emt 0:00:41]} Qg4 {[%emt 0:00:41]} 9. Qg3 {[%emt 0:00:35]} Qxg3 {[%emt 0:00:05]} 10. hxg3 {[%emt 0:00:06]} g6 {[%emt 0:03:31]} 11. d4 {[%emt 0:07:16]} Bf5 {[%emt 0:12:49]} 12. c3 {[%emt 0:02:12] [#]} h5 $146 {[%emt 0:14:27]} ({Predecessor:} 12... Nd7 13. Bh6 Nf6 14. Nd2 Bxh6 15. Rxh6 Kf8 16. O-O-O Kg7 17. Rdh1 Nh5 18. g4 Kxh6 19. gxf5 {½-½ (50) Gupta,S (2429)-Abdusattorov,N (2627) Chess.com INT 2020}) 13. Bg5 {[%emt 0:12:18]} Bg7 {[%emt 0:03:46]} 14. O-O-O {[%emt 0:00:58]} Nd7 {[%emt 0:11:10]} 15. Rhe1 {[%emt 0:05:16]} Nf6 {[%emt 0:08:15]} 16. Bc4 {[%emt 0:06:33]} e6 {[%emt 0:03:44]} 17. Re2 {[%emt 0:03:55]} Bg4 {[%emt 0:04:14]} 18. Kc2 {[%emt 0:01:56]} Nd5 {[%emt 0:01:01]} 19. Bb3 {[%emt 0:07:33]} a5 {[%emt 0:04:51][%cal Ba7a5,Ba5a4][%mdl 32]} 20. a3 {[%emt 0:08:49]} a4 {[%emt 0:02:13]} 21. Ba2 {[%emt 0:04:00]} b5 {[%emt 0:02:02]} 22. Rh1 {[%emt 0:01:06]} Bxf3 {[%emt 0:09:57]} ({Black should play} 22... f6 $15 23. Be3 g5) 23. gxf3 $11 {[%emt 0:00:06]} Kd7 {[%emt 0:00:21]} 24. Bd2 {[%emt 0:02:10]} Bf6 {[%emt 0:04:53][%cal Bg7f6,Bf6e7,Be7d6][%mdl 32]} 25. Ree1 {[%emt 0:04:03]} Be7 {[%emt 0:01:03]} 26. Kd1 {[%emt 0:01:44]} Rae8 {[%emt 0:01:42]} 27. Bb1 {[%emt 0:03:32]} Nb6 {[%emt 0:04:32]} 28. Bd3 {[%emt 0:01:18] The position is equal.} Bd6 {[%emt 0:00:40]} 29. Rh3 {[%emt 0:02:29]} Nc4 {[%emt 0:01:41]} 30. Bc1 {[%emt 0:01:42]} f5 {[%emt 0:00:45]} 31. f4 {[%emt 0:01:46] Weighted Error Value: White=0.11 (very precise) /Black=0.08 (flawless)} 1/2-1/2